bitfinex-derivatives/quotes_SOLF0:USTF0_20240905
["timestamp","ask_amount","ask_price","bid_price","bid_amount"]
[1725495542410,1.3158,134.11,134.06,11.47]
[1725495542925,14.2293,134.13,134.07,11.47]
[1725495543110,14.2293,134.13,134.09,0.05055196]
[1725495543111,1.3791,134.12,134.09,0.05055196]
[1725495544216,3.7287,134.1,134.09,0.05055196]
[1725495549620,3.7302,134.05,134.01,6.4844]
[1725495549825,11.47,134.08,134.02,11.47]
[1725495550218,1.3207,134.07,134.02,11.47]
[1725495550625,0.05287477,134.06,134.03,0.04817416]
[1725495550820,3.7306,134.04,134.03,0.04817416]
[1725495552423,3.7304,134.04,134.03,11.51817416]
[1725495552625,0.05287477,134.06,134.03,11.51817416]
[1725495552817,3.7303,134.05,134.03,11.51817416]
[1725495556424,3.7304,134.04,134.03,11.51817416]
[1725495558733,0.05287477,134.06,134.03,11.51817416]
[1725495559029,2.7611,134.13,134.05,11.47]
[1725495559239,2.7611,134.13,134.08,11.47]
[1725495560233,2.7611,134.13,134.09,0.05111461]
[1725495562138,3.7287,134.1,134.09,0.05111461]
[1725495565430,1.3844,134.15,134.09,11.52111461]
[1725495565836,3.7284,134.12,134.09,11.52111461]
[1725495567740,3.7279,134.13,134.11,11.47]
[1725495569333,3.7276,134.14,134.12,11.47]
[1725495569541,3.7276,134.14,134.12,11.51902973]
[1725495569735,11.47,134.18,134.12,11.51902973]
[1725495569932,3.7274,134.15,134.12,11.51902973]
[1725495572045,3.7276,134.14,134.12,11.51902973]
[1725495572239,3.7276,134.14,134.12,0.04902973]
[1725495572544,3.7276,134.14,134.12,11.51902973]
[1725495573235,3.7275,134.15,134.12,11.51902973]
[1725495573440,11.47,134.18,134.12,11.51902973]
[1725495573838,3.7276,134.14,134.12,11.51902973]
[1725495574147,1.3274,134.19,134.13,11.47]
[1725495575034,3.7272,134.16,134.13,11.47]
[1725495575234,11.47,134.18,134.12,0.04902973]
[1725495575744,3.7277,134.14,134.12,0.04902973]
[1725495576441,3.7279,134.13,134.12,0.04902973]
[1725495577239,3.7288,134.1,134.01,94.27505361]
[1725495577446,3.7288,134.1,134.07,11.47]
[1725495578247,3.7291,134.09,134.07,11.51931158]
[1725495579043,3.7291,134.09,134.07,0.04931158]
[1725495579240,3.7293,134.08,134.07,0.04931158]
[1725495579443,15.1993,134.08,134.07,0.04931158]
[1725495580338,15.1993,134.08,134.0,11.47]
[1725495580339,11.47,134.08,134.0,11.47]
[1725495580642,11.47,134.04,133.98,11.47]
[1725495581343,0.05556555,134.02,134.0,0.04745223]
[1725495581846,3.7312,134.01,134.0,0.04745223]
[1725495582551,0.05556555,134.02,133.95,28.67]
[1725495582552,3.7322,133.98,133.95,28.67]
[1725495583046,30.0008,134.03,133.95,28.67]
[1725495583645,0.05277872,134.0,133.98,0.04986605]
[1725495584048,3.7319,133.99,133.98,0.04986605]
[1725495585646,3.78427872,134.0,133.98,0.04986605]
[1725495586148,0.05277872,134.0,133.98,0.04986605]
[1725495586552,3.7318,133.99,133.98,0.04986605]
[1725495587745,3.7318,133.99,133.93,28.67]
[1725495587950,3.7327,133.96,133.93,28.67]
[1725495588546,1.4112,134.0,133.89,1.367]
[1725495588740,1.4112,134.0,133.91,28.67]
[1725495588945,1.4112,134.0,133.93,0.04920014]
[1725495588946,0.05574392,133.96,133.93,0.04920014]
[1725495589145,3.78844392,133.96,133.93,0.04920014]
[1725495589647,0.05574392,133.96,133.93,0.04920014]
[1725495590044,3.78844392,133.96,133.93,0.04920014]
[1725495590246,3.78844392,133.96,133.93,28.71920014]
[1725495590552,0.05574392,133.96,133.94,3.7331]
[1725495591046,0.05574392,133.96,133.93,28.71920014]
[1725495591250,0.05574392,133.96,133.94,3.733]
[1725495591451,0.05574392,133.96,133.93,28.71920014]
[1725495592444,0.05574392,133.96,133.94,3.7331]
[1725495592957,0.05574392,133.96,133.95,32.4029]
[1725495595856,3.7319,133.99,133.96,3.7324]
[1725495596351,3.7316,134.0,133.97,32.4023]
[1725495596947,3.78726848,134.0,133.97,32.45419074]
[1725495598058,0.05566848,134.0,133.97,28.72189074]
[1725495598655,0.05566848,134.0,133.98,28.67]
[1725495599351,0.05566848,134.0,133.99,3.7318]
[1725495599753,3.7308,134.03,133.98,28.67]
[1725495600061,30.01,134.09,134.0,28.67]
[1725495600547,3.7305,134.04,134.0,32.4014]
[1725495600748,0.0512439,134.03,134.01,0.05533683]
[1725495600952,0.05592318,134.03,134.01,0.05533683]
[1725495601660,3.78682318,134.03,134.01,0.05533683]
[1725495605854,3.7309,134.02,134.01,0.05533683]
[1725495606360,0.05592318,134.03,134.01,0.05533683]
[1725495606753,3.78672318,134.03,134.01,0.05533683]
[1725495611254,0.05592318,134.03,134.01,0.05533683]
[1725495612063,0.05592318,134.03,134.01,11.51533683]
[1725495612463,3.78672318,134.03,134.01,11.51533683]
[1725495613067,3.7309,134.02,134.01,0.05533683]
[1725495614266,15.1909,134.02,134.01,0.05533683]
[1725495614468,11.46,134.02,133.95,11.46]
[1725495614666,11.46,134.01,133.95,11.46]
[1725495614867,11.46,134.01,133.95,15.1928]
[1725495615366,11.46,133.98,133.97,0.05461886]
[1725495615571,11.46,133.98,133.96,0.04919217]
[1725495616065,0.0525034,133.99,133.96,0.04919217]
[1725495616264,3.7324,133.97,133.96,0.04919217]
[1725495620971,0.0525034,133.99,133.96,0.04919217]
[1725495621684,3.7323,133.97,133.96,0.04919217]
[1725495624577,0.0525034,133.99,133.96,0.04919217]
[1725495624980,3.7844034,133.99,133.96,3.78179217]
[1725495626180,0.0525034,133.99,133.96,0.04919217]
[1725495627279,3.7843034,133.99,133.96,3.78169217]
[1725495630380,3.7323,133.97,133.96,0.04919217]
[1725495648202,15.2023,133.97,133.96,0.04919217]
[1725495648502,3.7337,133.93,133.89,3.7345]
[1725495648702,15.2037,133.93,133.89,3.7345]
[1725495649403,0.05193384,133.92,133.9,0.05740352]
[1725495650101,11.52193384,133.92,133.9,0.05740352]
[1725495650709,3.734,133.91,133.9,0.05740352]
[1725495656312,15.204,133.91,133.9,0.05740352]
[1725495656904,3.7349,133.88,133.83,11.47]
[1725495657105,3.7349,133.88,133.84,3.7358]
[1725495658007,3.78919477,133.87,133.85,0.05209224]
[1725495660013,0.05409477,133.87,133.85,3.78769224]
[1725495660521,3.78929477,133.87,133.85,0.05209224]
[1725495662310,0.05409477,133.87,133.85,0.05209224]
[1725495663120,3.7354,133.86,133.85,0.05209224]
[1725495664321,15.2054,133.86,133.85,0.05209224]
[1725495666819,3.7354,133.86,133.85,0.05209224]
[1725495669524,3.78939477,133.87,133.85,0.05209224]
[1725495670819,0.05409477,133.87,133.85,0.05209224]
[1725495672126,0.05409477,133.87,133.85,3.78769224]
[1725495677232,0.05409477,133.87,133.86,3.7354]
[1725495687346,0.05409477,133.87,133.86,15.2054]
[1725495687546,0.05409477,133.87,133.86,17.9241]
[1725495690654,0.05409477,133.87,133.86,19.289]
[1725495692352,3.7333,133.94,133.9,3.7341]
[1725495692748,11.47,133.95,133.9,3.7341]
[1725495693442,0.05020464,133.94,133.91,0.05528953]
[1725495693643,3.7336,133.93,133.91,0.05528953]
[1725495695346,0.05020464,133.94,133.91,0.05528953]
[1725495695554,0.05020464,133.94,133.91,11.52528953]
[1725495696554,0.05020464,133.94,133.93,11.47]
[1725495696754,0.05020464,133.94,133.93,15.2034]
[1725495697556,11.47,134.0,133.93,15.2034]
[1725495697557,3.7316,134.0,133.96,3.7324]
[1725495698557,0.05391584,133.99,133.97,0.04820567]
[1725495700347,3.78581584,133.99,133.97,0.04820567]
[1725495700752,0.05391584,133.99,133.97,0.04820567]
[1725495704356,0.05391584,133.99,133.98,3.732]
[1725495705062,0.05391584,133.99,133.98,15.202]
[1725495720362,2.812,134.05,133.98,11.47]
[1725495720567,228.0,134.11,134.0,45.88]
[1725495720773,7.4539,134.17,134.05,11.47]
[1725495720774,4.0714,134.1,134.05,11.47]
[1725495721270,4.0714,134.1,134.06,0.05569501]
[1725495721470,0.05390732,134.09,134.06,0.05569501]
[1725495721876,0.05390732,134.09,134.07,11.47]
[1725495722974,0.05390732,134.09,134.06,0.05569501]
[1725495723172,0.05390732,134.09,134.06,11.52569501]
[1725495723873,3.78290732,134.09,134.06,11.52569501]
[1725495724369,0.05390732,134.09,134.06,11.52569501]
[1725495724871,3.78300732,134.09,134.06,11.52569501]
[1725495727071,3.78300732,134.09,134.06,15.25539501]
[1725495727671,0.05390732,134.09,134.06,0.05569501]
[1725495728277,3.7293,134.08,134.06,0.05569501]
[1725495735679,3.78290732,134.09,134.06,0.05569501]
[1725495735879,3.78290732,134.09,134.07,11.47]
[1725495736276,3.78300732,134.09,134.07,11.47]
[1725495736470,3.78300732,134.09,134.08,11.47]
[1725495737177,0.05390732,134.09,134.06,0.05569501]
[1725495737370,0.05390732,134.09,133.92,8.2254848]
[1725495737371,11.47,134.07,133.98,11.47]
[1725495737677,22.43,134.04,133.92,3.7337]
[1725495737884,11.47,134.0,133.93,11.47]
[1725495738177,22.43,134.04,133.92,11.47]
[1725495738178,11.47,133.98,133.92,11.47]
[1725495738378,11.51746414,133.98,133.95,0.0510389]
[1725495738880,3.7328,133.96,133.95,0.0510389]
[1725495740076,3.7323,133.97,133.95,0.0510389]
[1725495740275,0.04746414,133.98,133.95,0.0510389]
[1725495741072,3.7323,133.97,133.95,0.0510389]
[1725495743280,3.7326,133.96,133.95,0.0510389]
[1725495744471,11.47,133.97,133.9,11.47]
[1725495745074,3.7333,133.94,133.9,11.47]
[1725495745577,0.04708715,133.93,133.91,0.05119088]
[1725495746575,0.04708715,133.93,133.84,3.7357]
[1725495746774,28.7,133.93,133.83,28.7]
[1725495746981,1.3455,133.92,133.83,28.7]
[1725495747284,3.7346,133.89,133.85,3.7356]
[1725495747681,0.04755278,133.88,133.86,0.05555627]
[1725495748086,3.78245278,133.88,133.86,0.05555627]
[1725495748885,3.7351,133.87,133.86,0.05555627]
[1725495752087,3.78245278,133.88,133.86,0.05555627]
[1725495752481,0.04755278,133.88,133.86,0.05555627]
[1725495753087,0.04755278,133.88,133.87,28.7]
[1725495753291,0.04755278,133.88,133.87,32.4351]
[1725495756702,0.04755278,133.88,133.86,0.05555627]
[1725495757907,3.78245278,133.88,133.86,0.05555627]
[1725495762300,0.04755278,133.88,133.86,0.05555627]
[1725495763499,0.04755278,133.88,133.86,3.79085627]
[1725495763701,0.04755278,133.88,133.86,28.75555627]
[1725495765395,0.04755278,133.88,133.87,3.7351]
[1725495767407,0.04755278,133.88,133.86,3.79085627]
[1725495767907,0.04755278,133.88,133.86,15.26085627]
[1725495771404,0.04755278,133.88,133.87,3.7351]
[1725495772911,0.04755278,133.88,133.87,15.2051]
[1725495773607,3.7336,133.93,133.89,15.2043]
[1725495774609,0.04834548,133.92,133.9,0.04741176]
[1725495777107,0.04834548,133.92,133.9,3.78171176]
[1725495777611,0.04834548,133.92,133.91,3.734]
[1725495778012,1.3051,134.02,133.9,11.51741176]
[1725495778213,3.7321,133.98,133.96,11.47]
[1725495779217,0.05030103,133.98,133.96,11.52382567]
[1725495779921,0.05030103,133.98,133.96,15.25632567]
[1725495781515,0.05030103,133.98,133.96,0.05382567]
[1725495782524,3.78230103,133.98,133.96,0.05382567]
[1725495787326,0.05030103,133.98,133.96,3.78642567]
[1725495788329,0.05030103,133.98,133.97,3.7323]
[1725495789336,0.05030103,133.98,133.96,15.25632567]
[1725495793037,0.05030103,133.98,133.96,11.52382567]
[1725495793240,0.05030103,133.98,133.97,3.7323]
[1725495793838,7.4553,134.14,133.96,11.47]
[1725495794037,11.47,134.08,134.01,11.47]
[1725495794435,3.7303,134.05,134.01,15.201]
[1725495794839,0.05725073,134.04,134.02,0.05724471]
[1725495795836,0.05725073,134.04,134.03,11.47]
[1725495796641,0.05725073,134.04,134.03,15.2006]
[1725495797035,0.05725073,134.04,134.03,3.7306]
[1725495797341,0.05725073,134.04,134.03,15.2006]
[1725495798544,0.05725073,134.04,134.02,0.05724471]
[1725495800842,3.7306,134.03,134.02,0.05724471]
[1725495801941,3.78765073,134.04,134.02,0.05724471]
[1725495805943,3.7306,134.03,134.02,0.05724471]
[1725495806540,3.78785073,134.04,134.02,0.05724471]
[1725495807546,3.78785073,134.04,134.02,11.52724471]
[1725495807747,0.05725073,134.04,134.02,11.52724471]
[1725495807946,0.05725073,134.04,134.03,11.47]
[1725495809340,3.78765073,134.04,134.02,11.52724471]
[1725495809642,0.05725073,134.04,134.02,11.52724471]
[1725495810346,0.05725073,134.04,134.02,15.25814471]
[1725495812551,0.05725073,134.04,134.03,11.47]
[1725495812952,3.78765073,134.04,134.03,11.47]
[1725495816152,0.05725073,134.04,134.03,11.47]
[1725495819756,0.05725073,134.04,134.03,15.2006]
[1725495821160,1.3331,134.11,134.03,15.2006]
[1725495821360,1.3331,134.11,134.06,11.47]
[1725495821665,1.3331,134.11,134.07,11.47]
[1725495821854,22.43,134.18,134.09,11.47]
[1725495822055,11.47,134.15,134.09,11.47]
[1725495822258,0.04828415,134.13,134.11,0.04954458]
[1725495822866,3.7281,134.12,134.11,0.04954458]
[1725495826163,3.7294,134.08,134.01,4.1955]
[1725495826364,11.47,134.1,134.01,4.1955]
[1725495826570,11.47,134.1,134.03,11.47]
[1725495826771,11.47,134.08,133.93,45.88]
[1725495827075,11.47,134.08,134.01,11.47]
[1725495827276,3.7303,134.05,134.03,0.05172153]
[1725495827566,0.04824548,134.06,134.03,0.05172153]
[1725495828063,3.7303,134.05,134.03,0.05172153]
[1725495828766,3.77824548,134.06,134.03,0.05172153]
[1725495828967,0.04824548,134.06,134.05,11.47]
[1725495831471,0.04824548,134.06,134.05,15.2001]
[1725495831670,0.04824548,134.06,134.05,11.47]
[1725495832071,0.04824548,134.06,134.04,28.63]
[1725495832670,0.04824548,134.06,134.03,3.78212153]
[1725495832874,3.77814548,134.06,134.03,32.41212153]
[1725495834175,3.77814548,134.06,134.03,28.68172153]
[1725495835075,3.77814548,134.06,134.03,32.41232153]
[1725495835672,0.04824548,134.06,134.04,28.63]
[1725495835984,0.04824548,134.06,134.04,32.3603]
[1725495836480,0.04824548,134.06,134.05,3.7301]
[1725495841575,1.348,134.17,134.04,28.63]
[1725495841576,3.7292,134.09,134.06,3.7296]
[1725495841780,3.7292,134.09,134.07,28.63]
[1725495842484,3.77878325,134.09,134.07,28.68064226]
[1725495843180,0.04958325,134.09,134.07,28.68064226]
[1725495843386,0.04958325,134.09,134.07,32.41014226]
[1725495852392,0.04958325,134.09,134.07,28.68064226]
[1725495852589,3.77858325,134.09,134.07,28.68064226]
[1725495852783,3.77858325,134.09,134.07,0.05064226]
[1725495853383,3.7293,134.08,134.07,0.05064226]
[1725495858498,0.04958325,134.09,134.07,11.50064226]
[1725495859397,0.04958325,134.09,134.07,15.23014226]
[1725495860193,3.7282,134.12,134.07,11.50064226]
[1725495860395,12.8239,134.15,134.07,0.05064226]
[1725495860597,11.45,134.14,134.07,0.05064226]
[1725495860896,12.8239,134.15,134.09,11.45]
[1725495861296,12.8239,134.15,134.11,0.05364606]
[1725495861799,3.7281,134.12,134.11,0.05364606]
[1725495865899,3.7281,134.13,134.11,0.05364606]
[1725495866101,11.45,134.16,134.11,0.05364606]
[1725495866809,3.7281,134.12,134.11,0.05364606]
[1725495869404,3.7281,134.12,134.06,11.45]
[1725495869405,3.7292,134.09,134.06,11.45]
[1725495870416,3.78231473,134.09,134.06,15.22981634]
[1725495871403,3.78231473,134.09,134.08,11.45]
[1725495871603,0.05311473,134.09,134.08,11.45]
[1725495873407,0.05311473,134.09,134.08,15.1793]
[1725495881912,3.7278,134.14,134.1,3.7285]
[1725495882211,3.7278,134.14,134.11,11.45]
[1725495882807,3.7278,134.14,134.11,11.50722801]
[1725495884010,3.7279,134.13,134.11,11.50722801]
[1725495884410,3.7277,134.14,134.11,11.50722801]
[1725495885220,3.7279,134.13,134.11,11.50722801]
[1725495885717,11.45,134.16,134.11,0.05722801]
[1725495885913,11.45,134.15,134.12,0.0546795]
[1725495886108,12.7783,134.15,134.12,0.0546795]
[1725495887319,11.45,134.14,134.07,2.6594]
[1725495887517,11.45,134.14,134.07,14.1094]
[1725495887917,1.3283,134.15,134.1,11.45]
[1725495888118,1.4229,134.2,134.1,11.45]
[1725495888325,0.05521083,134.16,134.14,0.04884421]
[1725495889331,3.7273,134.15,134.14,0.04884421]
[1725495890529,0.05521083,134.16,134.14,0.04884421]
[1725495891132,3.7273,134.15,134.14,0.04884421]
[1725495897831,11.45,134.15,134.08,3.7292]
[1725495898036,3.7285,134.11,134.08,15.1792]
[1725495898937,3.77821867,134.11,134.08,15.22703107]
[1725495899135,3.7289,134.1,134.08,0.04783107]
[1725495900528,3.7289,134.1,134.08,11.49783107]
[1725495907740,0.04971867,134.11,134.08,11.49783107]
[1725495908035,12.8685,134.18,134.1,11.45]
[1725495908242,3.727,134.17,134.15,11.45]
[1725495908542,54.03013014,134.23,134.07,2.7399]
[1725495908543,11.45,134.18,134.07,2.7399]
[1725495908840,11.45,134.18,134.11,11.45]
[1725495909038,0.05385251,134.16,134.13,0.05486506]
[1725495909635,3.7278,134.14,134.13,0.05486506]
[1725495911038,0.05385251,134.16,134.13,11.50486506]
[1725495911244,0.05385251,134.16,134.15,11.45]
[1725495913041,0.05385251,134.16,134.15,15.1773]
[1725495914040,3.7255,134.22,134.18,3.7265]
[1725495914241,11.45,134.26,134.2,11.45]
[1725495915141,1.3467,134.27,134.22,0.04779015]
[1725495915442,0.27395671,134.26,134.22,0.04779015]
[1725495915747,3.7251,134.23,134.22,0.04779015]
[1725495917143,3.7249,134.24,134.22,0.04779015]
[1725495917352,11.45,134.26,134.22,0.04779015]
[1725495918340,3.7251,134.23,134.22,0.04779015]
[1725495927257,3.7249,134.24,134.22,0.04779015]
[1725495928143,1.3467,134.27,134.22,0.04779015]
[1725495928753,3.7246,134.25,134.23,11.45]
[1725495929457,3.7244,134.26,134.23,11.45]
[1725495929757,75.91044411,134.3,134.23,11.45]
[1725495929758,87.36044411,134.3,134.23,15.1751]
[1725495929954,3.7242,134.27,134.25,0.05153198]
[1725495930150,87.36044411,134.3,134.25,0.05153198]
[1725495930447,3.7242,134.27,134.25,0.05153198]
[1725495931045,3.7238,134.28,134.25,0.05153198]
[1725495931544,3.724,134.27,134.25,0.05153198]
[1725495933056,3.7238,134.28,134.25,0.05153198]
[1725495933552,3.724,134.27,134.25,0.05153198]
[1725495934550,3.7238,134.28,134.25,0.05153198]
[1725495938055,3.7243,134.26,134.25,0.05153198]
[1725495938457,11.45,134.3,134.25,0.05153198]
[1725495938659,3.7243,134.26,134.25,0.05153198]
[1725495941162,2.7132,134.32,134.25,0.05153198]
[1725495941465,11.72387958,134.31,134.25,0.05153198]
[1725495941661,11.72387958,134.3,134.25,0.05153198]
[1725495941862,3.7243,134.26,134.25,0.05153198]
[1725495942362,11.45,134.3,134.25,0.05153198]
[1725495942561,3.7241,134.27,134.25,0.05153198]
[1725495942961,11.45,134.3,134.25,0.05153198]
[1725495943564,3.7242,134.27,134.25,0.05153198]
[1725495943865,11.45,134.3,134.25,0.05153198]
[1725495944967,3.7243,134.26,134.25,0.05153198]
[1725495946268,3.7243,134.26,134.25,11.50153198]
[1725495946467,2.7132,134.32,134.25,11.50153198]
[1725495946664,11.72388087,134.31,134.25,11.50153198]
[1725495946863,11.45,134.31,134.25,11.50153198]
[1725495947066,3.7242,134.27,134.25,11.50153198]
[1725495947761,3.7243,134.26,134.25,11.50153198]
[1725495951071,22.43,134.25,134.15,11.45]
[1725495951369,3.7269,134.17,134.08,1.4025]
[1725495951570,3.7269,134.17,134.15,11.45]
[1725495951764,11.45,134.23,134.15,11.45]
[1725495951970,0.04710323,134.2,134.18,0.05474248]
[1725495952578,0.04710323,134.2,134.18,11.50474248]
[1725495953770,3.77310323,134.2,134.18,11.50474248]
[1725495954281,3.77310323,134.2,134.18,0.05474248]
[1725495954481,3.77310323,134.2,134.18,11.50474248]
[1725495955466,3.7248,134.24,134.19,3.7261]
[1725495955673,11.45,134.27,134.21,11.45]
[1725495956172,3.7253,134.23,134.21,11.45]
[1725495956476,3.7253,134.23,134.21,11.50282375]
[1725495956777,3.7254,134.22,134.21,11.50282375]
[1725495957675,11.45,134.27,134.21,11.50282375]
[1725495957676,3.7252,134.23,134.21,11.50282375]
[1725495958573,3.7249,134.24,134.21,11.50282375]
[1725495959576,3.7251,134.23,134.21,11.50282375]
[1725495959875,11.45,134.29,134.21,11.50282375]
[1725495960067,11.45,134.29,134.2,5.0699]
[1725495960068,0.27392719,134.28,134.24,0.05035763]
[1725495960273,0.27392719,134.28,134.24,11.50035763]
[1725495960475,13.8323,134.31,134.24,11.50035763]
[1725495960783,3.7241,134.27,134.24,11.50035763]
[1725495961685,3.7241,134.27,134.25,11.45]
[1725495961884,12.8912,134.31,134.25,11.45]
[1725495961885,1.4412,134.31,134.25,11.45]
[1725495962190,11.45,134.33,134.27,11.45]
[1725495962477,0.27383151,134.32,134.29,0.05077836]
[1725495963181,3.7231,134.3,134.29,0.05077836]
[1725495965980,3.7231,134.3,134.29,11.50077836]
[1725495966280,22.43,134.43,134.29,11.50077836]
[1725495966487,11.45,134.37,134.35,0.05286688]
[1725495966785,15.44525589,134.36,134.35,2.051e-05]
[1725495967171,15.44525954,134.36,134.35,2.051e-05]
[1725495967578,3.99525954,134.36,134.35,2.051e-05]
[1725495967784,15.44525954,134.36,134.35,2.051e-05]
[1725495968380,3.7237,134.28,134.27,12.7923]
[1725495968779,3.7237,134.28,134.27,1.3423]
[1725495969080,3.7237,134.28,134.27,12.7923]
[1725495970686,3.724,134.27,134.26,0.05258811]
[1725495971484,0.04826799,134.29,134.26,11.50258811]
[1725495971676,0.04826799,134.29,134.28,11.45]
[1725495973382,0.04826799,134.29,134.28,12.7553]
[1725495973784,3.7228,134.32,134.31,11.45]
[1725495974087,3.7228,134.32,134.3,28.61]
[1725495974792,3.7228,134.32,134.3,28.66146729]
[1725495975185,0.9406,134.38,134.3,28.66146729]
[1725495975396,30.0136,134.39,134.3,28.66146729]
[1725495975591,0.27372712,134.38,134.33,0.05483723]
[1725495976495,0.9439,134.41,134.33,0.05483723]
[1725495976695,0.27369848,134.4,134.34,28.61]
[1725495976885,0.27369848,134.4,134.36,0.04974213]
[1725495977095,3.7212,134.37,134.36,0.04974213]
[1725495979401,3.7227,134.32,134.29,28.61]
[1725495979896,3.7224,134.33,134.29,28.61]
[1725495980598,0.05400726,134.32,134.3,0.05522]
[1725495981096,3.77660726,134.32,134.3,0.05522]
[1725495981300,0.05400726,134.32,134.3,0.05522]
[1725495981988,3.77670726,134.32,134.3,0.05522]
[1725495982194,0.05400726,134.32,134.3,28.66522]
[1725495986500,95.87602061,134.42,134.31,28.61]
[1725495986700,95.87602061,134.42,134.33,28.61]
[1725495986904,95.87602061,134.42,134.34,1.4312]
[1725495987107,3.7211,134.38,134.34,1.4312]
[1725495987304,95.87602061,134.42,134.34,1.4312]
[1725495987502,95.87602061,134.42,134.37,0.0523953]
[1725495987706,3.7212,134.38,134.37,0.0523953]
[1725495989905,67.26602061,134.42,134.37,0.0523953]
[1725495990204,20.84612237,134.49,134.37,0.0523953]
[1725495990205,28.61,134.46,134.37,28.6623953]
[1725495990410,28.61,134.46,134.4,0.05178047]
[1725495990713,3.7201,134.41,134.4,0.05178047]
[1725495991709,3.7201,134.42,134.4,0.05178047]
[1725495992905,3.7201,134.41,134.4,0.05178047]
[1725495993304,28.61,134.46,134.4,0.05178047]
[1725495993509,3.72,134.42,134.4,0.05178047]
[1725495993911,28.61,134.46,134.4,0.05178047]
[1725495994309,28.61,134.44,134.4,0.05178047]
[1725495994604,1.4277,134.48,134.4,0.05178047]
[1725495994809,28.61,134.45,134.4,0.05178047]
[1725495995507,1.4277,134.48,134.4,0.05178047]
[1725495995508,3.7201,134.41,134.4,0.05178047]
[1725495997901,3.7201,134.41,134.34,30.0412]
[1725495997902,28.61,134.41,134.34,1.4312]
[1725495998101,28.61,134.39,134.31,28.61]
[1725495998310,28.61,134.39,134.3,1.3314]
[1725495998311,3.7225,134.33,134.3,1.3314]
[1725495998909,3.77428047,134.33,134.3,1.38574724]
[1725495999914,0.05178047,134.33,134.3,1.38574724]
[1725496000114,0.05178047,134.33,134.3,2.79194724]
[1725496000415,3.77418047,134.33,134.3,2.79194724]
[1725496000716,0.05178047,134.33,134.3,2.79194724]
[1725496001104,3.77418047,134.33,134.3,2.79194724]
[1725496001510,0.05178047,134.33,134.3,2.79194724]
[1725496002214,0.05178047,134.33,134.3,6.51504724]
[1725496002711,0.05178047,134.33,134.31,32.3329]
[1725496002916,28.61,134.41,134.31,32.3329]
[1725496003712,1.4168,134.42,134.36,28.61]
[1725496003915,3.7203,134.41,134.38,0.05129907]
[1725496004214,0.942,134.44,134.38,0.05129907]
[1725496004608,3.7206,134.4,134.38,0.05129907]
[1725496006616,3.7207,134.39,134.38,0.05129907]
[1725496012122,3.7205,134.4,134.38,0.05129907]
[1725496013624,25.73,134.4,134.32,2.8067]
[1725496013919,25.73,134.39,134.3,1.3314]
[1725496014131,25.73,134.37,134.27,28.4245]
[1725496014625,0.05129907,134.33,134.31,0.04950242]
[1725496015121,3.7227,134.32,134.31,0.04950242]
[1725496015319,0.05129907,134.33,134.31,0.04950242]
[1725496019020,3.77379907,134.33,134.31,0.04950242]
[1725496019628,3.7226,134.32,134.31,0.04950242]
[1725496024227,0.05129907,134.33,134.31,0.04950242]
[1725496024228,3.77369907,134.33,134.31,0.04950242]
[1725496024729,3.7226,134.32,134.31,0.04950242]
[1725496033128,25.73,134.34,134.25,25.73]
[1725496033435,25.73,134.32,134.23,29.455]
[1725496033624,1.4042,134.33,134.25,25.73]
[1725496034131,0.04833054,134.3,134.28,0.05565741]
[1725496034728,3.7234,134.29,134.28,0.05565741]
[1725496036029,0.04833054,134.3,134.21,27.0673]
[1725496036030,3.7248,134.25,134.21,27.0673]
[1725496036826,3.7243,134.26,134.21,27.0673]
[1725496037134,0.05039919,134.24,134.22,0.05110307]
[1725496037531,0.05039919,134.24,134.22,3.77630307]
[1725496037928,0.05039919,134.24,134.22,0.05110307]
[1725496039134,3.7251,134.23,134.22,0.05110307]
[1725496040537,3.726,134.2,134.16,29.4568]
[1725496041043,3.726,134.2,134.16,25.73]
[1725496041638,0.05735434,134.19,134.17,0.04884467]
[1725496041840,3.78355434,134.19,134.17,0.04884467]
[1725496042541,3.7265,134.18,134.17,0.04884467]
[1725496042936,0.05735434,134.19,134.17,0.04884467]
[1725496043235,3.78375434,134.19,134.17,0.04884467]